[Event "SixDays Budapest IM-A 11-2024"]
[Site "Budapest"]
[Date "2024.11.26"]
[Round "8.3"]
[White "Nemeth, Zalan"]
[Black "Semprun Martinez, Fernando"]
[Result "1/2-1/2"]
[ECO "D78"]
[WhiteElo "2268"]
[BlackElo "2025"]
[Annotator "RC"]
[PlyCount "151"]
[EventDate "2024.11.20"]
[EventType "tourn"]
[EventCountry "HUN"]
[SourceTitle "playchess.com"]
[Source "ChessBase"]
[SourceQuality "1"]
[TimeControl "5400+30"]

1. d4 {[%emt 0:03:55]} Nf6 {[%emt 0:00:48]} 2. c4 {[%emt 0:00:05]} g6 {[%emt 0:00:05]} 3. g3 {[%emt 0:00:04]} c6 {[%emt 0:00:10]} 4. Bg2 {[%emt 0:00:05]} d5 {[%emt 0:00:01]} 5. Nf3 {[%emt 0:00:08]} Bg7 {[%emt 0:00:02]} 6. O-O {[%emt 0:00:07]} O-O {[%emt 0:00:04]} 7. Nc3 {[%emt 0:00:04]} dxc4 {[%emt 0:00:32]} 8. e4 {[%emt 0:00:06]} b5 {[%emt 0:02:11]} 9. Qe2 {[%emt 0:00:06]} Na6 {[%emt 0:08:45]} 10. a3 {[%emt 0:06:21]} Qb6 {[%emt 0:05:23]} 11. d5 {[%emt 0:13:36]} Bb7 {[%emt 0:08:16]} 12. Be3 {[%emt 0:04:36]} Nc5 {[%emt 0:16:11]} 13. Nd4 {[%emt 0:08:35]} cxd5 {[%emt 0:01:53]} 14. exd5 {[%emt 0:06:55]} Rac8 {[%emt 0:02:49]} 15. Rad1 {[%emt 0:08:44]} a6 {[%emt 0:01:43]} 16. b4 {[%emt 0:03:07]} Nd3 {[%emt 0:07:52]} 17. Ndxb5 {[%emt 0:09:09]} Qd8 {[%emt 0:02:23]} 18. Na7 {[%emt 0:00:08]} Ra8 {[%emt 0:02:45]} 19. Nc6 {[%emt 0:00:18]} Qd7 {[%emt 0:01:26]} 20. Na4 Nxd5 {[%emt 0:08:50]} 21. Bxd5 {[%emt 0:05:48]} Bxc6 {[%emt 0:00:10]} 22. Nb6 {[%emt 0:00:07]} Qb7 {[%emt 0:03:40]} 23. Bxc6 {[%emt 0:03:44]} Qxc6 {[%emt 0:00:05]} 24. Nxa8 {[%emt 0:00:15]} Rxa8 {[%emt 0:00:09]} 25. Bc5 {[%emt 0:05:14]} e5 {[%emt 0:01:40]} 26. Rxd3 {[%emt 0:02:03]} cxd3 {[%emt 0:00:08]} 27. Qxd3 {[%emt 0:00:08]} e4 {[%emt 0:02:27]} 28. Qc4 {[%emt 0:00:45]} Re8 {[%emt 0:03:33]} 29. Rd1 {[%emt 0:04:10]} Bf8 {[%emt 0:03:58]} 30. Qd5 {[%emt 0:02:18]} Qa4 {[%emt 0:02:40]} 31. Bxf8 {[%emt 0:05:14]} Rxf8 {[%emt 0:00:39]} 32. Ra1 {[%emt 0:01:34]} Re8 {[%emt 0:00:17]} 33. Qd1 {[%emt 0:00:28]} Qb5 {[%emt 0:01:57]} 34. Qd2 {[%emt 0:00:08]} Qe5 {[%emt 0:01:35]} 35. Re1 {[%emt 0:00:15]} h5 {[%emt 0:00:35]} 36. h4 {[%emt 0:00:25]} Re6 {[%emt 0:00:46]} 37. Re3 {[%emt 0:00:59]} Qa1+ {[%emt 0:02:33]} 38. Kg2 {[%emt 0:00:12]} Qe5 {[%emt 0:01:46]} 39. a4 {[%emt 0:01:05]} Rd6 {[%emt 0:03:58]} 40. Qc3 {[%emt 0:01:09]} Qf5 {[%emt 0:00:53]} 41. Qe1 {[%emt 0:06:21]} Rd3 {[%emt 0:01:14]} 42. Qe2 {[%emt 0:01:01]} Qd5 {[%emt 0:00:21]} 43. Qe1 {[%emt 0:01:03]} Rd1 {[%emt 0:01:01]} 44. Qc3 {[%emt 0:00:16]} Kh7 {[%emt 0:01:13]} 45. Qc7 {[%emt 0:00:55]} Rd3 {[%emt 0:00:22]} 46. Qf4 {[%emt 0:00:09]} Rd4 {[%emt 0:00:30]} 47. b5 {[%emt 0:00:10]} axb5 {[%emt 0:00:14]} 48. axb5 {[%emt 0:00:03]} Rb4 {[%emt 0:00:18]} 49. Kh2 {[%emt 0:01:29]} Rxb5 {[%emt 0:00:17]} 50. Rxe4 {[%emt 0:00:59]} Rb1 {[%emt 0:00:21]} 51. Qf3 {[%emt 0:00:04]} Re1 {[%emt 0:01:43]} 52. Rf4 {[%emt 0:00:08]} Qxf3 {[%emt 0:00:02]} 53. Rxf3 {[%emt 0:00:05]} Kg7 {[%emt 0:00:12]} 54. Kg2 {[%emt 0:00:06]} Re2 {[%emt 0:00:07]} 55. Ra3 {[%emt 0:00:05]} Rb2 {[%emt 0:00:02]} 56. Kf3 {[%emt 0:00:15]} Rb4 {[%emt 0:00:16]} 57. Ke3 {[%emt 0:00:14]} Rc4 {[%emt 0:00:07]} 58. Rd3 {[%emt 0:00:07]} Ra4 {[%emt 0:00:01]} 59. Rd4 {[%emt 0:00:19]} Ra6 {[%emt 0:00:30]} 60. f3 {[%emt 0:00:12]} Ra1 {[%emt 0:00:21]} 61. Kf4 {[%emt 0:00:54]} Rf1 {[%emt 0:00:14]} 62. Rd3 {[%emt 0:00:45]} Ra1 {[%emt 0:00:23]} 63. g4 {[%emt 0:00:14]} Ra4+ {[%emt 0:00:16]} 64. Kg3 {[%emt 0:00:07]} hxg4 {[%emt 0:00:12]} 65. fxg4 {[%emt 0:00:12]} Ra1 {[%emt 0:00:06]} 66. Re3 {[%emt 0:00:16]} Rb1 {[%emt 0:00:02]} 67. Kf4 {[%emt 0:00:09]} Rb4+ {[%emt 0:00:20]} 68. Re4 {[%emt 0:00:19]} Rxe4+ {[%emt 0:00:32]} 69. Kxe4 {[%emt 0:00:05]} f5+ {[%emt 0:00:10]} 70. gxf5 {[%emt 0:00:05]} gxf5+ {[%emt 0:00:01]} 71. Kxf5 {[%emt 0:00:09]} Kh8 {[%emt 0:00:03]} 72. Kg6 {[%emt 0:00:07]} Kg8 {[%emt 0:00:00]} 73. h5 Kh8 74. h6 {[%emt 0:00:16]} Kg8 {[%emt 0:00:01]} 75. h7+ {[%emt 0:00:23]} Kh8 {[%emt 0:00:03]} 76. Kh6 {[%emt 0:00:05]} 1/2-1/2

[Event "SixDays Budapest IM-A 11-2024"]
[Site "Budapest"]
[Date "2024.11.26"]
[Round "8.4"]
[White "Kolimar, Kristof Pal"]
[Black "Horvath, David"]
[Result "0-1"]
[ECO "A05"]
[WhiteElo "2286"]
[BlackElo "2321"]
[Annotator "RC"]
[PlyCount "90"]
[EventDate "2024.11.20"]
[EventType "tourn"]
[EventCountry "HUN"]
[SourceTitle "playchess.com"]
[Source "ChessBase"]
[SourceQuality "1"]
[TimeControl "5400+30"]

1. Nf3 {[%emt 0:00:04]} Nf6 {[%emt 0:00:14]} 2. c4 {[%emt 0:00:07]} e6 {[%emt 0:00:10]} 3. g3 {[%emt 0:00:06]} d5 {[%emt 0:04:50]} 4. Bg2 {[%emt 0:00:16]} d4 {[%emt 0:01:13]} 5. O-O {[%emt 0:00:13]} c5 {[%emt 0:00:02]} 6. e3 {[%emt 0:00:59]} Nc6 {[%emt 0:00:04]} 7. exd4 {[%emt 0:00:10]} cxd4 {[%emt 0:00:02]} 8. d3 {[%emt 0:00:25]} Be7 {[%emt 0:00:21]} 9. Na3 {[%emt 0:03:57]} O-O {[%emt 0:02:28]} 10. Nc2 {[%emt 0:02:01]} a5 {[%emt 0:02:08]} 11. Re1 {[%emt 0:04:22]} Nd7 {[%emt 0:15:13]} 12. b3 {[%emt 0:11:03]} e5 {[%emt 0:04:30]} 13. Rb1 {[%emt 0:05:01]} Rb8 {[%emt 0:14:48]} 14. Nd2 {[%emt 0:06:28]} Nb4 {[%emt 0:10:22]} 15. Nxb4 {[%emt 0:02:16]} axb4 {[%emt 0:00:49]} 16. Nf3 {[%emt 0:07:42]} Bd6 {[%emt 0:08:53]} 17. c5 {[%emt 0:17:48]} Nxc5 {[%emt 0:07:13]} 18. Nxe5 {[%emt 0:00:09]} Bf5 {[%emt 0:02:13]} 19. Bf4 {[%emt 0:06:48]} Qf6 {[%emt 0:11:07]} 20. Qd2 {[%emt 0:05:43]} h6 {[%emt 0:00:36]} 21. g4 {[%emt 0:15:24]} Bxg4 {[%emt 0:01:58]} 22. Nxg4 {[%emt 0:01:52]} Qxf4 {[%emt 0:00:06]} 23. Qxf4 {[%emt 0:00:02]} Bxf4 {[%emt 0:00:08]} 24. Bf1 {[%emt 0:04:28]} Rfe8 {[%emt 0:05:10]} 25. Rxe8+ {[%emt 0:00:59]} Rxe8 {[%emt 0:00:02]} 26. h3 {[%emt 0:00:02]} Bd2 {[%emt 0:03:35]} 27. Nh2 {[%emt 0:00:38]} Bc3 {[%emt 0:00:24]} 28. Rc1 {[%emt 0:00:00]} Ne6 {[%emt 0:00:33]} 29. Kg2 {[%emt 0:01:31]} Nf4+ {[%emt 0:01:13]} 30. Kf3 {[%emt 0:00:02]} Re6 {[%emt 0:00:54]} 31. h4 {[%emt 0:01:03]} g5 {[%emt 0:01:08]} 32. hxg5 {[%emt 0:00:22]} hxg5 {[%emt 0:00:02]} 33. Kg4 {[%emt 0:00:23]} f6 {[%emt 0:00:36]} 34. Nf3 {[%emt 0:00:26]} Kg7 {[%emt 0:00:32]} 35. Kf5 {[%emt 0:00:12]} Ra6 {[%emt 0:00:23]} 36. Rc2 {[%emt 0:00:05]} Ra5+ {[%emt 0:00:30]} 37. Kg4 {[%emt 0:00:06]} Ne6 {[%emt 0:00:50]} 38. Nd2 {[%emt 0:03:06]} f5+ {[%emt 0:00:54]} 39. Kg3 {[%emt 0:00:06]} Nf4 {[%emt 0:00:42]} 40. Nc4 {[%emt 0:00:37]} Ra6 {[%emt 0:00:47]} 41. Bh3 {[%emt 0:01:36]} Kf6 {[%emt 0:00:13]} 42. Bf1 {[%emt 0:00:45]} Re6 {[%emt 0:00:30]} 43. f3 {[%emt 0:00:56]} Re1 {[%emt 0:00:45]} 44. Kf2 {[%emt 0:00:03]} Ra1 {[%emt 0:00:13]} 45. Nd2 {[%emt 0:00:16]} Nd5 {[%emt 0:00:19]} 0-1

[Event "SixDays Budapest IM-A 11-2024"]
[Site "Budapest"]
[Date "2024.11.26"]
[Round "8.5"]
[White "Otsuka, Shou"]
[Black "Mahitosh Dey"]
[Result "1/2-1/2"]
[ECO "A05"]
[WhiteElo "2248"]
[BlackElo "2220"]
[Annotator "RC"]
[PlyCount "74"]
[EventDate "2024.11.20"]
[EventType "tourn"]
[EventCountry "HUN"]
[SourceTitle "playchess.com"]
[Source "ChessBase"]
[SourceQuality "1"]
[TimeControl "5400+30"]

1. Nf3 Nf6 {[%emt 0:16:33]} 2. b3 {[%emt 0:01:32]} d5 {[%emt 0:00:11]} 3. e3 {[%emt 0:00:09]} Bf5 {[%emt 0:00:08]} 4. Ba3 {[%emt 0:02:55]} Nbd7 {[%emt 0:00:54]} 5. c4 {[%emt 0:00:10]} c6 {[%emt 0:03:14]} 6. Be2 {[%emt 0:03:45]} h6 {[%emt 0:05:04]} 7. O-O {[%emt 0:01:11]} g5 {[%emt 0:00:09]} 8. Nc3 {[%emt 0:01:43]} Bg7 {[%emt 0:00:13]} 9. d4 {[%emt 0:07:06]} O-O {[%emt 0:00:31]} 10. Ne5 {[%emt 0:01:33]} Ne4 {[%emt 0:07:09]} 11. Nxe4 {[%emt 0:00:39]} Bxe4 {[%emt 0:00:05]} 12. f3 {[%emt 0:02:31]} Bh7 {[%emt 0:00:54]} 13. f4 {[%emt 0:01:17]} Nxe5 {[%emt 0:02:09]} 14. fxe5 {[%emt 0:02:02]} f6 {[%emt 0:01:09]} 15. cxd5 {[%emt 0:09:34]} cxd5 {[%emt 0:00:21]} 16. e6 {[%emt 0:00:27]} f5 {[%emt 0:00:30]} 17. Qd2 {[%emt 0:17:16]} Qb6 {[%emt 0:01:57]} 18. Rac1 {[%emt 0:03:54]} Rfc8 {[%emt 0:02:47]} 19. Qb4 {[%emt 0:06:59]} Qxe6 {[%emt 0:07:00]} 20. Qxe7 {[%emt 0:00:03]} Re8 {[%emt 0:01:05]} 21. Qxe6+ {[%emt 0:00:19]} Rxe6 {[%emt 0:00:05]} 22. Bf3 {[%emt 0:00:05]} Rd8 {[%emt 0:00:10]} 23. Rc5 {[%emt 0:07:13]} Rxe3 {[%emt 0:00:37]} 24. Rxd5 {[%emt 0:00:01]} Rxd5 {[%emt 0:00:12]} 25. Bxd5+ {[%emt 0:00:02]} Kh8 {[%emt 0:00:07]} 26. Rd1 {[%emt 0:02:53]} f4 {[%emt 0:00:04]} 27. Bxb7 {[%emt 0:04:13]} Bc2 {[%emt 0:00:04]} 28. Rd2 {[%emt 0:00:43]} Bd3 {[%emt 0:00:03]} 29. h3 {[%emt 0:03:02]} Bxd4 {[%emt 0:00:05]} 30. Kh2 {[%emt 0:00:16]} h5 {[%emt 0:06:08]} 31. Bf3 {[%emt 0:00:56]} Re1 {[%emt 0:02:34]} 32. Bb2 {[%emt 0:00:27]} Bxb2 {[%emt 0:00:08]} 33. Rxb2 {[%emt 0:01:06]} h4 {[%emt 0:00:22]} 34. Rd2 {[%emt 0:02:28]} Re3 {[%emt 0:00:07]} 35. Kg1 {[%emt 0:00:03]} Re1+ {[%emt 0:00:46]} 36. Kh2 {[%emt 0:00:02]} Re3 {[%emt 0:00:05]} 37. Kg1 {[%emt 0:00:11]} Re1+ {[%emt 0:00:15]} 1/2-1/2

[Event "SixDays Budapest IM-A 11-2024"]
[Site "Budapest"]
[Date "2024.11.27"]
[Round "9.1"]
[White "Mahitosh Dey"]
[Black "To, Nhat Minh"]
[Result "1/2-1/2"]
[ECO "C54"]
[WhiteElo "2220"]
[BlackElo "2314"]
[Annotator "RC"]
[PlyCount "21"]
[EventDate "2024.11.20"]
[EventType "tourn"]
[EventCountry "HUN"]
[SourceTitle "playchess.com"]
[Source "ChessBase"]
[SourceQuality "1"]
[TimeControl "5400+30"]

1. e4 {[%emt 0:12:36]} e5 {[%emt 0:00:04]} 2. Nf3 {[%emt 0:00:06]} Nc6 {[%emt 0:00:03]} 3. Bc4 {[%emt 0:00:05]} Bc5 {[%emt 0:00:03]} 4. c3 {[%emt 0:00:04]} Nf6 {[%emt 0:00:02]} 5. d3 {[%emt 0:00:03]} d6 {[%emt 0:00:02]} 6. Nbd2 {[%emt 0:00:08]} a5 {[%emt 0:00:10]} 7. h3 {[%emt 0:00:09]} O-O {[%emt 0:01:03]} 8. O-O {[%emt 0:00:16]} h6 {[%emt 0:01:02]} 9. Bb3 {[%emt 0:01:19]} Be6 {[%emt 0:02:42]} 10. Bc2 {[%emt 0:00:40]} Ba7 {[%emt 0:04:22]} 11. Re1 {[%emt 0:00:26]} 1/2-1/2

[Event "SixDays Budapest IM-A 11-2024"]
[Site "Budapest"]
[Date "2024.11.27"]
[Round "9.3"]
[White "Semprun Martinez, Fernando"]
[Black "Kolimar, Kristof Pal"]
[Result "1/2-1/2"]
[ECO "B47"]
[WhiteElo "2025"]
[BlackElo "2286"]
[Annotator "RC"]
[PlyCount "90"]
[EventDate "2024.11.20"]
[EventType "tourn"]
[EventCountry "HUN"]
[SourceTitle "playchess.com"]
[Source "ChessBase"]
[SourceQuality "1"]
[TimeControl "5400+30"]

1. e4 {[%emt 0:00:03]} c5 {[%emt 0:00:09]} 2. Nf3 {[%emt 0:00:02]} e6 {[%emt 0:00:13]} 3. d4 {[%emt 0:00:01]} cxd4 {[%emt 0:00:13]} 4. Nxd4 {[%emt 0:00:01]} Nc6 {[%emt 0:00:19]} 5. Nc3 {[%emt 0:01:02]} Qc7 {[%emt 0:00:06]} 6. f4 {[%emt 0:00:44]} a6 {[%emt 0:00:31]} 7. Be2 {[%emt 0:01:56]} Nxd4 {[%emt 0:03:30]} 8. Qxd4 {[%emt 0:00:03]} b5 {[%emt 0:00:19]} 9. Be3 {[%emt 0:02:50]} Bb7 {[%emt 0:00:25]} 10. O-O {[%emt 0:00:41]} Rc8 {[%emt 0:00:24]} 11. Rad1 {[%emt 0:00:18]} Nf6 {[%emt 0:12:16]} 12. e5 {[%emt 0:00:23]} Nd5 {[%emt 0:00:10]} 13. Nxd5 {[%emt 0:00:02]} Bxd5 {[%emt 0:00:10]} 14. Bf3 {[%emt 0:00:06]} Bc5 {[%emt 0:12:06]} 15. Qxc5 {[%emt 0:01:05]} Qxc5 {[%emt 0:00:13]} 16. Bxc5 {[%emt 0:00:04]} Bxf3 {[%emt 0:00:06]} 17. Rxf3 {[%emt 0:00:04]} Rxc5 {[%emt 0:00:07]} 18. c3 {[%emt 0:02:03]} Ke7 {[%emt 0:08:32]} 19. Rfd3 {[%emt 0:01:36]} Rd8 {[%emt 0:03:31]} 20. Rd6 {[%emt 0:02:07]} a5 {[%emt 0:04:50]} 21. Kf2 {[%emt 0:07:06]} f6 {[%emt 0:08:32]} 22. exf6+ {[%emt 0:01:49]} gxf6 {[%emt 0:00:06]} 23. Kf3 {[%emt 0:05:25]} b4 {[%emt 0:08:03]} 24. cxb4 {[%emt 0:01:20]} axb4 {[%emt 0:00:11]} 25. R1d2 {[%emt 0:08:51]} Rb5 {[%emt 0:09:05]} 26. g4 {[%emt 0:04:06]} Rb7 {[%emt 0:05:04]} 27. Ra6 {[%emt 0:11:06]} Rc8 {[%emt 0:05:33]} 28. h4 {[%emt 0:03:20]} b3 {[%emt 0:05:05]} 29. a3 {[%emt 0:08:10]} Rc2 {[%emt 0:02:38]} 30. Rad6 {[%emt 0:00:04]} Rxb2 {[%emt 0:02:51]} 31. Rxd7+ {[%emt 0:00:02]} Rxd7 {[%emt 0:00:08]} 32. Rxb2 {[%emt 0:00:01]} Rd3+ {[%emt 0:00:23]} 33. Ke4 {[%emt 0:00:49]} Rg3 {[%emt 0:00:38]} 34. a4 {[%emt 0:14:30]} Kd6 {[%emt 0:00:25]} 35. a5 {[%emt 0:01:01]} Kc5 {[%emt 0:03:38]} 36. g5 {[%emt 0:01:07]} fxg5 {[%emt 0:02:35]} 37. hxg5 {[%emt 0:00:17]} Kb5 {[%emt 0:02:48]} 38. Rh2 {[%emt 0:01:47]} Kxa5 {[%emt 0:02:09]} 39. Rxh7 {[%emt 0:00:21]} Kb4 {[%emt 0:00:32]} 40. Rb7+ {[%emt 0:01:54]} Kc3 {[%emt 0:00:14]} 41. Ke5 {[%emt 0:00:48]} Rg4 {[%emt 0:01:26]} 42. Kxe6 {[%emt 0:01:00]} Rxf4 {[%emt 0:00:06]} 43. g6 {[%emt 0:00:11]} b2 {[%emt 0:00:24]} 44. g7 {[%emt 0:02:22]} Rg4 {[%emt 0:00:04]} 45. Kf7 {[%emt 0:00:59]} Kc2 {[%emt 0:00:06]} 1/2-1/2

[Event "SixDays Budapest IM-A 11-2024"]
[Site "Budapest"]
[Date "2024.11.26"]
[Round "9.5"]
[White "Krishna C R G"]
[Black "Fodor, Balazs"]
[Result "1-0"]
[ECO "A48"]
[WhiteElo "2448"]
[BlackElo "2206"]
[Annotator "TA"]
[PlyCount "103"]
[EventDate "2024.11.20"]
[EventType "tourn"]
[EventCountry "HUN"]
[SourceTitle "playchess.com"]
[Source "ChessBase"]
[SourceQuality "1"]
[TimeControl "5400+30"]

{[%evp 14,103,25,27,16,0,14,0,0,0,0,0,30,35,22,19,54,35,35,43,41,46,56,44,56,61,70,62,62,47,89,96,93,88,83,39,44,49,44,35,43,56,70,65,83,76,81,75,93,92,98,90,88,83,83,81,85,85,97,78,85,70,72,0,70,64,170,161,681,260,683,78,73,0,0,0,548,555,556,601,600,641,702,715,509,773,783,785,914,750,921,869]} 1. d4 {[%emt 0:08:10]} Nf6 {[%emt 0:00:10]} 2. Nf3 {[%emt 0:00:03]} g6 {[%emt 0:00:10]} 3. c4 {[%emt 0:00:52]} Bg7 {[%emt 0:00:09]} 4. e3 {[%emt 0:00:03]} O-O {[%emt 0:00:22]} 5. Be2 {[%emt 0:00:05]} d6 {[%emt 0:00:06][%cal Bd7d6,Bd6d5][%mdl 32]} 6. O-O {[%emt 0:00:08]} c5 {[%emt 0:05:49]} 7. Nc3 {[%emt 0:01:08]} cxd4 {[%emt 0:02:10]} 8. exd4 {[%emt 0:00:29]} d5 {[%emt 0:01:56]} 9. h3 {[%emt 0:05:19]} Nc6 {[%emt 0:05:15]} 10. a3 {[%emt 0:02:03]} e6 {[%emt 0:08:49] The position is equal.} 11. Re1 {[%emt 0:16:00]} b6 {[%emt 0:09:40]} 12. Bg5 {[%emt 0:00:35]} h6 {[%emt 0:03:03]} 13. cxd5 {[%emt 0:00:28]} exd5 {[%emt 0:00:25]} 14. Bf4 {[%emt 0:00:48]} a6 {[%emt 0:07:23] Dodges Nb5} 15. Ne5 {[%emt 0:16:06]} Bb7 {[%emt 0:03:21]} 16. Bf3 {[%emt 0:00:03]} Re8 {[%emt 0:11:47]} 17. Qd3 {[%emt 0:03:26]} Ne7 {[%emt 0:07:05]} 18. Ng4 {[%emt 0:08:51]} Nxg4 {[%emt 0:07:26]} 19. hxg4 {[%emt 0:00:02]} ({Much worse is} 19. Bxg4 h5 20. Bf3 Nf5) 19... Qd7 {[%emt 0:00:31]} 20. Be5 {[%emt 0:02:43] White is much more active.} Rad8 {[%emt 0:01:13]} 21. Re3 {[%emt 0:04:34]} g5 {[%emt 0:05:02]} 22. Bxg7 {[%emt 0:09:58]} Kxg7 {[%emt 0:00:07]} 23. Rae1 {[%emt 0:00:24]} Ng6 {[%emt 0:00:29]} 24. g3 {[%emt 0:00:02] Rxe8 is the strong threat.} Rxe3 {[%emt 0:02:05]} 25. Rxe3 {[%emt 0:00:12]} Qc6 {[%emt 0:03:37]} 26. Re2 {[%emt 0:01:37][%cal Be3e2,Be2c2,Bc2c5][%mdl 32]} b5 {[%emt 0:02:36]} 27. Nd1 {[%emt 0:01:47]} Bc8 {[%emt 0:04:14]} 28. Rc2 {[%emt 0:01:41]} Qd6 {[%emt 0:01:21]} 29. Ne3 {[%emt 0:02:04][%cal Oc2c8] [#] Hoping for Rxc8!} Ne7 {[%emt 0:00:15]} 30. Rc5 {[%emt 0:02:36]} Qe6 {[%emt 0:04:08]} 31. Qc3 {[%emt 0:04:03]} Bb7 {[%emt 0:00:35]} 32. Rc7 {[%emt 0:00:38]} Rc8 {[%emt 0:01:05]} 33. Kg2 {[%emt 0:02:14]} Rxc7 {[%emt 0:01:04]} 34. Qxc7 {[%emt 0:00:01]} Bc8 {[%emt 0:01:03][%cal Bb7c8,Bc8d7,Bd7e6][%mdl 32]} 35. b4 {[%emt 0:01:23]} Bd7 {[%emt 0:01:20]} 36. Qa7 {[%emt 0:01:58]} Qd6 {[%emt 0:01:11]} 37. Qa8 {[%emt 0:00:27]} Be6 {[%emt 0:00:05]} 38. Kf1 {[%emt 0:02:07]} (38. Qb7 $16) 38... Qc6 {[%emt 0:01:44]} (38... Qb6 $1 $11) 39. Qd8 $14 {[%emt 0:00:02]} Qc1+ {[%emt 0:00:31]} (39... Qd7 $14 40. Qb6 Qc6) 40. Kg2 $18 {[%emt 0:00:02]} Nc6 {[%emt 0:00:24] [#]} (40... Ng8) 41. Qb6 $2 {[%emt 0:00:47]} (41. Qd6) 41... Qc3 $2 (41... Ne7 42. Qxa6 Qc6) 42. Bxd5 $2 {[%emt 0:00:33]} ({Inferior is} 42. Qxa6 Nxd4 43. Bd1 Qd3 $11) (42. Qc7 $18 {and the rest is easy.}) 42... Nxd4 $16 {[%emt 0:00:42]} 43. Bxe6 {[%emt 0:00:02]} (43. Qxa6 {leads to mate.} Bxd5+ 44. Kh2 Qe1) ({White should play} 43. Be4 $16) 43... fxe6 $11 {[%emt 0:00:31]} 44. Qxa6 {[%emt 0:00:41]} Qc6+ $2 {[%emt 0:00:54][%mdl 8192]} (44... Qd3 $11) 45. Qxc6 $18 {[%emt 0:00:02] White is clearly winning.} Nxc6 {[%emt 0:00:05][%mdl 4096] Endgame. KN-KN} 46. Kf3 {[%emt 0:00:16]} Kf6 {[%emt 0:00:10]} 47. Ke4 {[%emt 0:00:02]} Ke7 {[%emt 0:00:36]} 48. Nd1 {[%emt 0:02:17]} Kd6 {[%emt 0:00:18]} 49. Nc3 {[%emt 0:00:01]} (49. f4 $142) 49... Na7 {[%emt 0:00:46]} 50. f4 {[%emt 0:00:02]} Ke7 {[%emt 0:00:50]} 51. Kd4 {[%emt 0:00:05]} gxf4 {[%emt 0:00:28]} 52. gxf4 {[%emt 0:00:02] Weighted Error Value: White=0.46/Black=0.56.  Loses game:     	---       	Black=1      Mistake:       	White=2     	Black=4      Inaccurate:     	White=1     	Black=3      OK:         	White=10    	Black=16     Best:        	White=4     	Black=1} 1-0